fUST/lending_fUST_20250915
["ID","MTS","AMOUNT","RATE_DAILY","PERIOD"]
[385465564,1757874650320,-159.266346,0.00021917,2]
[385465565,1757874650329,-159.266346,0.00021917,2]
[385465566,1757874650339,-159.266342,0.00021917,2]
[385465567,1757874650348,-480.0,0.00021917,2]
[385465568,1757874650358,-151.0,0.00021917,2]
[385465569,1757874650367,-500.0,0.00021917,2]
[385465570,1757874650376,-151.0,0.00021917,2]
[385465571,1757874650386,-151.0,0.00021917,2]
[385465572,1757874650396,-151.0,0.00021917,2]
[385465573,1757874650405,-151.0,0.00021917,2]
[385465574,1757874650415,-480.0,0.00021917,2]
[385465575,1757874650425,-151.0,0.00021917,2]
[385465576,1757874650434,-151.0,0.00021917,2]
[385465577,1757874650444,-151.0,0.00021917,2]
[385465578,1757874650453,-151.0,0.00021917,2]
[385465579,1757874650463,-480.0,0.00021917,2]
[385465580,1757874650472,-151.0,0.00021917,2]
[385465581,1757874650615,-151.0,0.00021917,2]
[385465582,1757874650626,-151.0,0.00021917,2]
[385465583,1757874650637,-151.0,0.00021917,2]
[385465584,1757874650646,-151.0,0.00021917,2]
[385465585,1757874650655,-151.0,0.00021917,2]
[385465586,1757874650665,-151.0,0.00021917,2]
[385465587,1757874650674,-151.0,0.00021917,2]
[385465588,1757874650683,-259.694026,0.00021917,2]
[385465589,1757874650692,-151.0,0.00021917,2]
[385465590,1757874650701,-151.0,0.00021917,2]
[385465591,1757874650710,-151.0,0.00021917,2]
[385465592,1757874650720,-151.0,0.00021917,2]
[385465593,1757874650729,-151.0,0.00021917,2]
[385465594,1757874650739,-151.0,0.00021917,2]
[385465595,1757874650748,-151.0,0.00021917,2]
[385465596,1757874650758,-151.0,0.00021917,2]
[385465597,1757874650767,-514.61,0.00021917,2]
[385465598,1757874650779,-151.0,0.00021917,2]
[385465599,1757874650788,-151.0,0.00021917,2]
[385465600,1757874650798,-151.0,0.00021917,2]
[385465601,1757874650807,-151.0,0.00021917,2]
[385465602,1757874650818,-151.0,0.00021917,2]
[385465603,1757874650827,-233.603168,0.00021917,2]
[385465604,1757874650837,-155.853016,0.00021917,2]
[385465605,1757874650847,-151.0,0.00021917,2]
[385465606,1757874650856,-300.0,0.00021917,2]
[385465607,1757874650866,-151.0,0.00021917,2]
[385465608,1757874650875,-498.56,0.00021917,2]
[385465609,1757874650885,-1403.0,0.00021917,2]
[385465610,1757874650894,-151.0,0.00021917,2]
[385465611,1757874650903,-151.0,0.00021917,2]
[385465612,1757874650912,-151.0,0.00021917,2]
[385465613,1757874650922,-151.0,0.00021917,2]
[385465614,1757874650931,-480.0,0.00021917,2]
[385465615,1757874650941,-500.0,0.00021917,2]
[385465616,1757874650951,-151.0,0.00021917,2]
[385465617,1757874650960,-480.0,0.00021917,2]
[385465618,1757874650969,-500.0,0.00021917,2]
[385465619,1757874650978,-216.67611592,0.00021917,2]
[385465620,1757874650987,-248.13637627,0.00021917,2]
[385465621,1757874650996,-620.86,0.00021917,2]
[385465622,1757874651006,-3642.92,0.00021917,2]
[385465623,1757874651015,-500.07,0.00021917,2]
[385465624,1757874651024,-151.0,0.00021917,2]
[385465625,1757874651033,-851.8,0.00021917,2]
[385465626,1757874651042,-480.0,0.00021917,2]
[385465627,1757874651051,-151.0,0.00021917,2]
[385465628,1757874651061,-151.0,0.00021917,2]
[385465629,1757874651070,-186.48231975,0.00021917,2]
[385465630,1757874651079,-151.0,0.00021917,2]
[385465631,1757874651088,-151.0,0.00021917,2]
[385465632,1757874651098,-241.68970822,0.00021917,2]
[385465633,1757874651107,-500.0,0.00021917,2]
[385465634,1757874651116,-21116.87,0.00021917,2]
[385465635,1757874651126,-500.0,0.00021917,2]
[385465636,1757874651136,-500.0,0.00021917,2]
[385465637,1757874651145,-480.0,0.00021917,2]
[385465638,1757874651155,-151.0,0.00021917,2]
[385465639,1757874651165,-500.0,0.00021917,2]
[385465640,1757874651174,-1362.92,0.00021917,2]
[385465641,1757874651184,-555.48,0.00021917,2]
[385465642,1757874651195,-151.0,0.00021917,2]
[385465643,1757874651206,-1120.68,0.00021917,2]
[385465644,1757874651216,-151.0,0.00021917,2]
[385465645,1757874651226,-1351.52,0.00021917,2]
[385465646,1757874651236,-166.99079156,0.00021917,2]
[385465647,1757874651247,-480.0,0.00021917,2]
[385465648,1757874651256,-151.0,0.00021917,2]
[385465649,1757874651265,-480.0,0.00021917,2]
[385465650,1757874651274,-480.0,0.00021917,2]
[385465651,1757874651283,-480.0,0.00021917,2]
[385465652,1757874651293,-826.56,0.00021917,2]
[385465653,1757874651302,-151.0,0.00021917,2]
[385465654,1757874651311,-2012.7,0.00021917,2]
[385465655,1757874651321,-151.0,0.00021917,2]
[385465656,1757874651331,-489.20108789,0.00021917,2]
[385465657,1757874651341,-415.730838,0.00021917,2]
[385465658,1757874651351,-415.730838,0.00021917,2]
[385465659,1757874651360,-151.0,0.00021917,2]
[385465660,1757874651369,-415.730838,0.00021917,2]
[385465661,1757874651378,-415.730838,0.00021917,2]
[385465662,1757874651387,-415.730838,0.00021917,2]
[385465663,1757874651396,-415.730838,0.00021917,2]
[385465664,1757874651406,-415.730838,0.00021917,2]
[385465665,1757874651415,-415.730838,0.00021917,2]
[385465666,1757874651424,-415.730838,0.00021917,2]
[385465667,1757874651433,-480.0,0.00021917,2]
[385465668,1757874651442,-415.730838,0.00021917,2]
[385465669,1757874651452,-415.730838,0.00021917,2]
[385465670,1757874651462,-1229.52,0.00021917,2]
[385465671,1757874651471,-151.0,0.00021917,2]
[385465672,1757874651480,-415.730838,0.00021917,2]
[385465673,1757874651489,-415.730838,0.00021917,2]
[385465674,1757874651498,-151.0,0.00021917,2]
[385465675,1757874651508,-686.85,0.00021917,2]
[385465676,1757874651518,-480.0,0.00021917,2]
[385465677,1757874651527,-415.730838,0.00021917,2]
[385465678,1757874651537,-415.730838,0.00021917,2]
[385465679,1757874651546,-415.730838,0.00021917,2]
[385465680,1757874651556,-1116.94,0.00021917,2]
[385465681,1757874651566,-500.0,0.00021917,2]
[385465682,1757874651575,-415.730838,0.00021917,2]
[385465683,1757874651584,-415.730838,0.00021917,2]
[385465684,1757874651594,-415.730838,0.00021917,2]
[385465685,1757874651604,-415.73084098,0.00021917,2]
[385465686,1757874651613,-480.0,0.00021917,2]
[385465687,1757874651622,-500.0,0.00021917,2]
[385465688,1757874651632,-480.0,0.00021917,2]
[385465689,1757874651642,-500.0,0.00021917,2]
[385465690,1757874651652,-2043.26,0.00021917,2]
[385465691,1757874651661,-151.0,0.00021917,2]
[385465692,1757874651670,-151.0,0.00021917,2]
[385465693,1757874651680,-151.0,0.00021917,2]
[385465694,1757874651689,-151.0,0.00021917,2]
[385465695,1757874651699,-151.0,0.00021917,2]
[385465696,1757874651708,-480.0,0.00021917,2]
[385465697,1757874651718,-2638.27,0.00021917,2]
[385465698,1757874651727,-480.0,0.00021917,2]
[385465699,1757874651737,-480.0,0.00021917,2]
[385465700,1757874651746,-480.0,0.00021917,2]
[385465701,1757874651756,-2831.97,0.00021917,2]
[385465702,1757874651765,-480.0,0.00021917,2]
[385465703,1757874651778,-480.0,0.00021917,2]
[385465704,1757874651788,-480.0,0.00021917,2]
[385465705,1757874651797,-368.75887402,0.00021917,2]
[385465706,1757874651806,-609.06,0.00021917,2]
[385465707,1757874651816,-480.0,0.00021917,2]
[385465708,1757874651826,-3658.13,0.00021917,2]
[385465709,1757874651836,-480.0,0.00021917,2]
[385465710,1757874651845,-2189.01,0.00021917,2]
[385465711,1757874651854,-532.78,0.00021917,2]
[385465712,1757874651864,-1063.49,0.00021917,2]
[385465713,1757874651874,-480.0,0.00021917,2]
[385465714,1757874651884,-848.0,0.00021917,2]
[385465715,1757874651893,-480.0,0.00021917,2]
[385465716,1757874651903,-480.0,0.00021917,2]
[385465717,1757874651913,-480.0,0.00021917,2]
[385465718,1757874651922,-151.0,0.00021917,2]
[385465719,1757874651931,-151.0,0.00021917,2]
[385465720,1757874651940,-480.0,0.00021917,2]
[385465721,1757874651950,-151.0,0.00021917,2]
[385465722,1757874651959,-151.0,0.00021917,2]
[385465723,1757874651969,-151.0,0.00021917,2]
[385465724,1757874651978,-151.0,0.00021917,2]
[385465725,1757874651987,-278.673816,0.00021917,2]
[385465726,1757874651996,-232.30764,0.00021917,2]
[385465727,1757874652005,-232.30764,0.00021917,2]
[385465728,1757874652015,-480.0,0.00021917,2]
[385465729,1757874652024,-232.30764,0.00021917,2]
[385465730,1757874652034,-232.30764,0.00021917,2]
[385465731,1757874652042,-232.30764,0.00021917,2]
[385465732,1757874652052,-232.30764,0.00021917,2]
[385465733,1757874652061,-232.30764,0.00021917,2]
[385465734,1757874652070,-232.30764,0.00021917,2]
[385465735,1757874652079,-232.30764,0.00021917,2]
[385465736,1757874652089,-232.30764,0.00021917,2]
[385465737,1757874652098,-232.30764,0.00021917,2]
[385465738,1757874652108,-232.30764,0.00021917,2]
[385465739,1757874652117,-480.0,0.00021917,2]
[385465740,1757874652126,-232.30764,0.00021917,2]
[385465741,1757874652135,-232.30764,0.00021917,2]
[385465742,1757874652145,-232.30764,0.00021917,2]
[385465743,1757874652154,-480.0,0.00021917,2]
[385465744,1757874652163,-232.30764,0.00021917,2]
[385465745,1757874652172,-480.0,0.00021917,2]
[385465746,1757874652181,-480.0,0.00021917,2]
[385465747,1757874652190,-12378.99,0.00021917,2]
[385465748,1757874652199,-480.0,0.00021917,2]
[385465749,1757874652209,-480.0,0.00021917,2]
[385465750,1757874652218,-480.0,0.00021917,2]
[385465751,1757874652227,-480.0,0.00021917,2]
[385465752,1757874652236,-1131.89,0.00021917,2]
[385465753,1757874652245,-741.12,0.00021917,2]
[385465754,1757874652254,-1064.26,0.00021917,2]
[385465755,1757874652263,-287.349545,0.00021917,2]
[385465756,1757874652273,-259.013869,0.00021917,2]
[385465757,1757874652282,-259.013869,0.00021917,2]
[385465758,1757874652291,-151.0,0.00021917,2]
[385465759,1757874652300,-259.013869,0.00021917,2]
[385465760,1757874652309,-259.013869,0.00021917,2]
[385465761,1757874652318,-151.0,0.00021917,2]
[385465762,1757874652327,-259.013869,0.00021917,2]
[385465763,1757874652336,-151.0,0.00021917,2]
[385465764,1757874652346,-259.013869,0.00021917,2]
[385465765,1757874652355,-151.0,0.00021917,2]
[385465766,1757874652366,-259.013869,0.00021917,2]
[385465767,1757874652375,-259.013869,0.00021917,2]
[385465768,1757874652384,-151.0,0.00021917,2]
[385465769,1757874652394,-151.0,0.00021917,2]
[385465770,1757874652403,-259.013869,0.00021917,2]
[385465771,1757874652415,-151.0,0.00021917,2]
[385465772,1757874652425,-259.013869,0.00021917,2]
[385465773,1757874652434,-151.0,0.00021917,2]
[385465774,1757874652444,-259.013869,0.00021917,2]
[385465775,1757874652454,-707.88,0.00021917,2]
[385465776,1757874652463,-259.013869,0.00021917,2]
[385465777,1757874652472,-151.0,0.00021917,2]
[385465778,1757874652481,-151.0,0.00021917,2]
[385465779,1757874652491,-259.013869,0.00021917,2]
[385465780,1757874652500,-151.0,0.00021917,2]
[385465781,1757874652509,-259.013869,0.00021917,2]
[385465782,1757874652519,-339.082144,0.00021917,2]
[385465783,1757874652528,-151.0,0.00021917,2]
[385465784,1757874652538,-259.013869,0.00021917,2]
[385465785,1757874652547,-339.082144,0.00021917,2]
[385465786,1757874652557,-259.013873,0.00021917,2]
[385465787,1757874652567,-339.082144,0.00021917,2]
[385465788,1757874652576,-151.0,0.00021917,2]
[385465789,1757874652585,-339.082144,0.00021917,2]
[385465790,1757874652595,-165.539808,0.00021917,2]
[385465791,1757874652604,-339.082144,0.00021917,2]
[385465792,1757874652615,-339.082144,0.00021917,2]
[385465793,1757874652624,-339.082144,0.00021917,2]
[385465794,1757874652633,-339.082144,0.00021917,2]
[385465795,1757874652642,-713.15,0.00021917,2]
[385465796,1757874652651,-339.082144,0.00021917,2]
[385465797,1757874652661,-339.082144,0.00021917,2]
[385465798,1757874652670,-339.082144,0.00021917,2]
[385465799,1757874652679,-339.082144,0.00021917,2]
[385465800,1757874652688,-339.082144,0.00021917,2]
[385465801,1757874652698,-339.082144,0.00021917,2]
[385465802,1757874652709,-339.082144,0.00021917,2]
[385465803,1757874652718,-480.0,0.00021917,2]
[385465804,1757874652728,-339.082141,0.00021917,2]
[385465805,1757874652737,-2004.13,0.00021917,2]
[385465806,1757874652747,-151.0,0.00021917,2]
[385465807,1757874652756,-151.0,0.00021917,2]
[385465808,1757874652766,-151.0,0.00021917,2]
[385465809,1757874652778,-679.11,0.00021917,2]
[385465810,1757874652787,-151.0,0.00021917,2]
[385465811,1757874652796,-6192.28,0.00021917,2]
[385465812,1757874652807,-151.0,0.00021917,2]
[385465813,1757874652817,-151.0,0.00021917,2]
[385465814,1757874652826,-151.0,0.00021917,2]
[385465815,1757874652836,-245.435359,0.00021917,2]
[385465816,1757874652848,-480.0,0.00021917,2]
[385465817,1757874652858,-864.41,0.00021917,2]
[385465818,1757874652868,-1213.36,0.00021917,2]
[385465819,1757874652878,-1671.32,0.00021917,2]
[385465820,1757874652888,-151.0,0.00021917,2]
[385465821,1757874652899,-151.0,0.00021917,2]
[385465822,1757874652909,-151.0,0.00021917,2]
[385465823,1757874652919,-151.0,0.00021917,2]
[385465824,1757874652928,-151.0,0.00021917,2]
[385465825,1757874652937,-151.0,0.00021917,2]
[385465826,1757874652947,-151.0,0.00021917,2]
[385465827,1757874652956,-151.0,0.00021917,2]
[385465828,1757874652965,-152.201607,0.00021917,2]
[385465829,1757874652979,-151.0,0.00021917,2]
[385465830,1757874652988,-151.0,0.00021917,2]
[385465831,1757874652998,-1382.7,0.00021917,2]
[385465832,1757874653007,-2534.17,0.00021917,2]
[385465833,1757874653016,-151.0,0.00021917,2]
[385465834,1757874653026,-480.0,0.00021917,2]
[385465835,1757874653035,-151.0,0.00021917,2]
[385465836,1757874653045,-151.0,0.00021917,2]
[385465837,1757874653054,-151.0,0.00021917,2]
[385465838,1757874653063,-151.0,0.00021917,2]
[385465839,1757874653073,-151.0,0.00021917,2]
[385465840,1757874653082,-168.190832,0.00021917,2]
[385465841,1757874653092,-559.82,0.00021917,2]
[385465842,1757874653101,-709.6,0.00021917,2]
[385465843,1757874653110,-2079.43,0.00021917,2]
[385465844,1757874653120,-480.0,0.00021917,2]
[385465845,1757874653129,-480.0,0.00021917,2]
[385465846,1757874653139,-2420.7,0.00021917,2]
[385465847,1757874653148,-573.1,0.00021917,2]
[385465848,1757874653157,-442.19906303,0.00021917,2]
[385465849,1757874653166,-2484.62,0.00021917,2]
[385465850,1757874653176,-1009.52,0.00021917,2]
[385465851,1757874653185,-949.0,0.00021917,2]
[385465852,1757874653195,-480.0,0.00021917,2]
[385465853,1757874653205,-499.66257259,0.00021917,2]
[385465854,1757874653214,-2097.87,0.00021917,2]
[385465855,1757874653224,-1148.3,0.00021917,2]
[385465856,1757874653233,-502.71165054,0.00021917,2]
[385465857,1757874653243,-4949.58,0.00021917,2]
[385465858,1757874653252,-679.74,0.00021917,2]
[385465859,1757874653261,-708.28,0.00021917,2]
[385465860,1757874653271,-480.0,0.00021917,2]
[385465861,1757874653280,-989.66,0.00021917,2]
[385465862,1757874653289,-159.156673,0.00021917,2]
[385465863,1757874653300,-480.0,0.00021917,2]
[385465864,1757874653310,-206.434058,0.00021917,2]
[385465865,1757874653319,-1632.74,0.00021917,2]
[385465866,1757874653328,-541.408746,0.00021917,2]
[385465867,1757874653339,-417.70756166,0.00021917,2]
[385465868,1757874653349,-541.408746,0.00021917,2]
[385465869,1757874653359,-923.31,0.00021917,2]
[385465870,1757874653368,-541.408746,0.00021917,2]
[385465871,1757874653378,-541.408746,0.00021917,2]
[385465872,1757874653387,-541.408746,0.00021917,2]
[385465873,1757874653397,-541.408746,0.00021917,2]
[385465874,1757874653406,-541.408746,0.00021917,2]
[385465875,1757874653415,-541.408746,0.00021917,2]
[385465876,1757874653425,-214.64698675,0.00021917,2]
[385465877,1757874653434,-541.408746,0.00021917,2]
[385465878,1757874653444,-659.29,0.00021917,2]
[385465879,1757874653454,-541.408746,0.00021917,2]
[385465880,1757874653463,-541.408746,0.00021917,2]
[385465881,1757874653472,-541.408746,0.00021917,2]
[385465882,1757874653482,-492.20820192,0.00021917,2]
[385465883,1757874653493,-541.408746,0.00021917,2]
[385465884,1757874653503,-541.408746,0.00021917,2]
[385465885,1757874653514,-541.408746,0.00021917,2]
[385465886,1757874653524,-541.408738,0.00021917,2]
[385465887,1757874653534,-480.0,0.00021917,2]
[385465888,1757874653543,-480.0,0.00021917,2]
[385465889,1757874653553,-480.0,0.00021917,2]
[385465890,1757874653562,-488.11613169,0.00021917,2]
[385465891,1757874653572,-542.95,0.00021917,2]
[385465892,1757874653582,-736.02,0.00021917,2]
[385465893,1757874653592,-480.0,0.00021917,2]
[385465894,1757874653601,-480.0,0.00021917,2]
[385465895,1757874653612,-151.0,0.00021917,2]
[385465896,1757874653621,-480.0,0.00021917,2]
[385465897,1757874653631,-151.0,0.00021917,2]
[385465898,1757874653640,-151.0,0.00021917,2]
[385465899,1757874653650,-151.0,0.00021917,2]
[385465900,1757874653659,-151.0,0.00021917,2]
[385465901,1757874653669,-213.454921,0.00021917,2]
[385465902,1757874653678,-151.0,0.00021917,2]
[385465903,1757874653687,-213.454921,0.00021917,2]
[385465904,1757874653697,-151.0,0.00021917,2]
[385465905,1757874653706,-213.454921,0.00021917,2]
[385465906,1757874653837,-151.0,0.00021917,2]
[385465907,1757874653864,-213.454921,0.00021917,2]
[385465908,1757874653874,-213.454921,0.00021917,2]
[385465909,1757874653883,-213.454921,0.00021917,2]
[385465910,1757874653892,-213.454921,0.00021917,2]
[385465911,1757874653902,-213.454921,0.00021917,2]
[385465912,1757874653911,-213.454921,0.00021917,2]
[385465913,1757874653921,-213.454921,0.00021917,2]
[385465914,1757874653931,-213.454921,0.00021917,2]
[385465915,1757874653941,-672.38,0.00021917,2]
[385465916,1757874653951,-213.454921,0.00021917,2]
[385465917,1757874653960,-480.0,0.00021917,2]
[385465918,1757874653970,-213.454921,0.00021917,2]
[385465919,1757874653980,-213.454921,0.00021917,2]
[385465920,1757874653989,-213.454921,0.00021917,2]
[385465921,1757874653999,-213.454918,0.00021917,2]
[385465922,1757874654009,-480.0,0.00021917,2]
[385465923,1757874654018,-480.0,0.00021917,2]
[385465924,1757874654027,-480.0,0.00021917,2]
[385465925,1757874654037,-480.0,0.00021917,2]
[385465926,1757874654049,-612.72,0.00021917,2]
[385465927,1757874654059,-1067.14,0.00021917,2]
[385465928,1757874654068,-5709.28,0.00021917,2]
[385465929,1757874654077,-751.57,0.00021917,2]
[385465930,1757874654086,-1104.31,0.00021917,2]
[385465931,1757874654096,-151.0,0.00021918,2]
[385465932,1757874654105,-151.0,0.00021918,2]
[385465933,1757874654114,-151.0,0.00021918,2]
[385465934,1757874654123,-2036.18811955,0.00021927,2]
[385465935,1757874654133,-500.0,0.00021973,2]
[385465936,1757874654143,-500.0,0.00021973,2]
[385465937,1757874654153,-500.0,0.00021973,2]
[385465938,1757874654164,-500.61231435,0.00021973,2]
[385465939,1757874654173,-500.0,0.00021973,2]
[385465940,1757874654183,-500.0,0.00021973,2]
[385465941,1757874654193,-500.0,0.00021973,2]
[385465942,1757874654203,-500.0,0.00021973,2]
[385465943,1757874654212,-213.17021743,0.00021973,2]
[385465944,1757874654223,-500.0,0.00021973,2]
[385465945,1757874654232,-500.0,0.00021973,2]
[385465946,1757874654241,-500.0,0.00021973,2]
[385465947,1757874654251,-502.01026714,0.00021973,2]
[385465948,1757874654261,-500.0,0.00021973,2]
[385465949,1757874654271,-500.0,0.00021973,2]
[385465950,1757874654281,-500.0,0.00021973,2]
[385465951,1757874654291,-500.0,0.00021973,2]
[385465952,1757874654300,-500.0,0.00021973,2]
[385465953,1757874654310,-501.9381638,0.00021973,2]
[385465954,1757874654320,-500.0,0.00021973,2]
[385465955,1757874654330,-355.58149535,0.00021973,2]
[385465956,1757874654340,-500.0,0.00021973,2]
[385465957,1757874654349,-500.0,0.00021973,2]
[385465958,1757874654360,-500.0,0.00021973,2]
[385465959,1757874654369,-500.0,0.00021973,2]
[385465960,1757874654379,-500.0,0.00021973,2]
[385465961,1757874654389,-500.83706707,0.00021973,2]
[385465962,1757874654399,-500.0,0.00021973,2]
[385465963,1757874654410,-500.0,0.00021973,2]
[385465964,1757874654419,-500.0,0.00021973,2]
[385465965,1757874654429,-500.0,0.00021973,2]
[385465966,1757874654439,-504.28191165,0.00021973,2]
[385465967,1757874654448,-500.0,0.00021973,2]
[385465968,1757874654457,-500.3492413,0.00021973,2]
[385465969,1757874654468,-500.0,0.00021973,2]
[385465970,1757874654478,-500.64990657,0.00021973,2]
[385465971,1757874654487,-500.0,0.00021973,2]
[385465972,1757874654497,-500.0,0.00021973,2]
[385465973,1757874654507,-482.24433182,0.00021973,2]
[385465974,1757874654516,-500.0,0.00021973,2]
[385465975,1757874654526,-500.0,0.00021973,2]
[385465976,1757874654535,-500.0,0.00021973,2]
[385465977,1757874654545,-500.0,0.00021973,2]
[385465978,1757874654554,-206.97033485,0.00021973,2]
[385465979,1757874654565,-500.0,0.00021973,2]
[385465980,1757874654574,-500.0,0.00021973,2]
[385465981,1757874654583,-500.0,0.00021973,2]
[385465982,1757874654592,-500.0,0.00021973,2]
[385465983,1757874654602,-500.0,0.00021973,2]
[385465984,1757874654612,-500.0,0.00021973,2]
[385465985,1757874654622,-500.0,0.00021973,2]
[385465986,1757874654631,-500.0,0.00021973,2]
[385465987,1757874654641,-500.0,0.00021973,2]
[385465988,1757874654650,-10590.30103238,0.00021997,2]
[385465989,1757874654660,-237.0,0.00022,2]
[385465990,1757874654671,-7967.17190642,0.00022,2]
[385465991,1757874654681,-2464.61,0.00022,7]
[385465992,1757874654691,-291.93941595,0.00022,2]
[385465993,1757874654701,-188.5479816,0.00022,2]
[385465994,1757874654711,-188.5479816,0.00022,2]
[385465995,1757874654721,-610.92,0.00022,2]
[385465996,1757874654731,-2036.18811955,0.00022009,2]
[385465997,1757874654740,-1286.8379705,0.00022013,2]
[385465998,1757874654750,-346.0,0.00022017,2]
[385465999,1757874654760,-216.0,0.00022072,2]
[385466000,1757874654769,-500.0,0.00022091,2]
[385466001,1757874654781,-2036.18811955,0.00022091,2]
[385466002,1757874654791,-2532.81934126,0.00022135,2]
[385466003,1757874654801,-609.58858351,0.00022173,2]
[385466004,1757874654811,-500.0,0.00022173,2]
[385466005,1757874654822,-500.32767685,0.00022173,2]
[385466006,1757874654831,-500.0,0.00022173,2]
[385466007,1757874654843,-500.0,0.00022173,2]
[385466008,1757874654853,-500.0,0.00022173,2]
[385466009,1757874654864,-500.0,0.00022173,2]
[385466010,1757874654874,-500.0,0.00022173,2]
[385466011,1757874654886,-323.37092754,0.00022173,2]
[385466012,1757874654896,-500.0,0.00022173,2]
[385466013,1757874654906,-450.89492531,0.00022173,2]
[385466014,1757874654917,-160.18467723,0.00022173,2]
[385466015,1757874654927,-237.0,0.00022175,2]
[385466016,1757874654938,-4606.11894688,0.00022179,2]
[385466017,1757874654948,-200.0,0.0002219,2]
[385466018,1757874654958,-151.0,0.00022191,2]
[385466019,1757874654967,-163.0,0.00022191,2]
[385466020,1757874654977,-151.0,0.00022191,2]
[385466021,1757874654987,-500.0,0.00022191,2]
[385466022,1757874654996,-151.0,0.00022191,2]
[385466023,1757874655005,-154.41451713,0.00022191,2]
[385466024,1757874655015,-500.0,0.00022191,2]
[385466025,1757874655024,-500.0,0.00022191,2]
[385466026,1757874655033,-151.0,0.00022191,2]
[385466027,1757874655042,-151.0,0.00022191,2]
[385466028,1757874655053,-169.0,0.00022191,2]
[385466029,1757874655062,-151.0,0.00022191,2]
[385466030,1757874655072,-1403.0,0.00022191,2]
[385466031,1757874655081,-500.0,0.00022191,2]
[385466032,1757874655092,-151.0,0.00022191,2]
[385466033,1757874655101,-500.0,0.00022191,2]
[385466034,1757874655112,-151.0,0.00022191,2]
[385466035,1757874655121,-501.99667609,0.00022191,2]
[385466036,1757874655131,-569.29329209,0.00022191,2]
[385466037,1757874655141,-500.0,0.00022191,2]
[385466038,1757874655151,-151.0,0.00022191,2]
[385466039,1757874655160,-500.0,0.00022191,2]
[385466040,1757874655169,-151.0,0.00022191,2]
[385466041,1757874655179,-151.0,0.00022191,2]
[385466042,1757874655188,-151.0,0.00022191,2]
[385466043,1757874655197,-151.0,0.00022191,2]
[385466044,1757874655207,-236.03803334,0.00022191,2]
[385466045,1757874655218,-291.1441014,0.00022191,2]
[385466046,1757874655227,-500.0,0.00022191,2]
[385466047,1757874655237,-500.0,0.00022191,2]
[385466048,1757874655247,-500.0,0.00022191,2]
[385466049,1757874655257,-480.0,0.00022191,3]
[385466050,1757874655266,-800.9,0.00022191,3]
[385466051,1757874655276,-10585.41552735,0.00022191,3]
[385466052,1757874655285,-457.787272,0.00022191,3]
[385466053,1757874655294,-860.26,0.00022191,3]
[385466054,1757874655305,-480.0,0.00022191,3]
[385466055,1757874655314,-480.0,0.00022191,3]
[385466056,1757874655324,-480.0,0.00022191,3]
[385466057,1757874655334,-739.8,0.00022191,3]
[385466058,1757874655343,-480.0,0.00022191,3]
[385466059,1757874655354,-431.48,0.00022191,3]
[385466060,1757874655363,-480.0,0.00022191,3]
[385466061,1757874655372,-493.58209321,0.00022191,3]
[385466062,1757874655381,-480.0,0.00022191,3]
[385466063,1757874655392,-193.32753249,0.00022191,3]